[Event "World Junior Chess Championship U20 2022"]
[White "Galaviz Medina, Sion Radamantys"]
[Black "Horvath, Dominik"]
[WhiteFideId "5123119"]
[BlackFideId "1642561"]
[WhiteElo "2345"]
[BlackElo "2505"]
[Result "0-1"]
[Round "05"]
[TimeControl "5400+30"]
[Date "2022.10.15"]
[WhiteClock "0:03:48"]
[BlackClock "1:04:16"]

1. d4 {[%clk 1:27:04]}  d5 {[%clk 1:30:52]} 2. c4 {[%clk 1:27:30]}  e6 {[%clk 1:31:18]} 3. Nc3 {[%clk 1:27:56]}  Nf6 {[%clk 1:31:44]} 4. cxd5 {[%clk 1:27:43]}  exd5 {[%clk 1:32:10]} 5. Bg5 {[%clk 1:28:08]}  Bb4 {[%clk 1:32:30]} 6. e3 {[%clk 1:28:00]}  h6 {[%clk 1:32:55]} 7. Bh4 {[%clk 1:28:16]}  g5 {[%clk 1:33:16]} 8. Bg3 {[%clk 1:25:26]}  Ne4 {[%clk 1:33:40]} 9. Ne2 {[%clk 1:25:46]}  h5 {[%clk 1:33:56]} 10. h4 {[%clk 1:24:51]}  Nxg3 {[%clk 1:34:21]} 11. Nxg3 {[%clk 1:25:16]}  gxh4 {[%clk 1:34:46]} 12. Nxh5 {[%clk 1:25:39]}  c6 {[%clk 1:35:13]} 13. a3 {[%clk 1:25:50]}  Bd6 {[%clk 1:34:36]} 14. g3 {[%clk 1:25:44]}  hxg3 {[%clk 1:29:53]} 15. Qf3 {[%clk 1:23:58]}  Be6 {[%clk 1:26:21]} 16. fxg3 {[%clk 0:48:59]}  Nd7 {[%clk 1:25:59]} 17. O-O-O {[%clk 0:25:17]}  Qg5 {[%clk 1:26:09]} 18. Be2 {[%clk 0:25:41]}  O-O-O {[%clk 1:26:09]} 19. Kb1 {[%clk 0:23:45]}  Bf5+ {[%clk 1:15:11]} 20. Ka1 {[%clk 0:23:59]}  Rde8 {[%clk 1:05:43]} 21. g4 {[%clk 0:23:26]}  Bc2 {[%clk 1:04:00]} 22. Rc1 {[%clk 0:23:15]}  Rxe3 {[%clk 1:03:20]} 23. Qxf7 {[%clk 0:16:03]}  Rxc3 {[%clk 1:03:39]} 24. Nf6 {[%clk 0:08:10]}  Rd8 {[%clk 1:03:54]} 25. Nxd7 {[%clk 0:07:28]}  Bg6 {[%clk 1:03:50]} 26. Nb6+ {[%clk 0:03:48]}  Kb8 {[%clk 1:04:16]} 0-1


[Site "http://www.chessbomb.com"]

[Event "World Junior Chess Championship U20 2022"]
[White "Isik, Alparslan"]
[Black "Zhu, Jiner"]
[WhiteFideId "34506896"]
[BlackFideId "8608059"]
[WhiteElo "2377"]
[BlackElo "2484"]
[Result "1-0"]
[Round "05"]
[TimeControl "5400+30"]
[Date "2022.10.15"]
[WhiteClock "0:05:13"]
[BlackClock "0:12:09"]

1. Nf3 {[%clk 1:30:46]}  d5 {[%clk 1:30:50]} 2. d4 {[%clk 1:31:05]}  Nf6 {[%clk 1:31:08]} 3. c4 {[%clk 1:31:29]}  e6 {[%clk 1:31:33]} 4. Nc3 {[%clk 1:31:54]}  Bb4 {[%clk 1:31:47]} 5. Bg5 {[%clk 1:32:15]}  h6 {[%clk 1:30:25]} 6. Bxf6 {[%clk 1:32:39]}  Qxf6 {[%clk 1:30:51]} 7. e3 {[%clk 1:33:02]}  O-O {[%clk 1:30:45]} 8. Rc1 {[%clk 1:33:23]}  dxc4 {[%clk 1:29:05]} 9. Bxc4 {[%clk 1:33:45]}  c5 {[%clk 1:29:16]} 10. O-O {[%clk 1:33:46]}  cxd4 {[%clk 1:29:35]} 11. Ne4 {[%clk 1:33:55]}  Qe7 {[%clk 1:29:24]} 12. a3 {[%clk 1:33:31]}  Ba5 {[%clk 1:29:44]} 13. Qxd4 {[%clk 1:33:54]}  Rd8 {[%clk 1:30:06]} 14. Qe5 {[%clk 1:33:49]}  Bb6 {[%clk 1:25:33]} 15. Rfd1 {[%clk 1:30:21]}  Nd7 {[%clk 1:12:19]} 16. Qd6 {[%clk 1:14:21]}  Kf8 {[%clk 1:09:05]} 17. Qf4 {[%clk 1:11:23]}  Kg8 {[%clk 1:03:51]} 18. Qd6 {[%clk 0:58:31]}  Kf8 {[%clk 1:01:01]} 19. Qf4 {[%clk 0:58:46]}  Kg8 {[%clk 0:39:39]} 20. Bb3 {[%clk 0:51:01]}  Nf8 {[%clk 0:35:28]} 21. Rxd8 {[%clk 0:50:30]}  Bxd8 {[%clk 0:34:29]} 22. Nd6 {[%clk 0:46:39]}  Ng6 {[%clk 0:32:54]} 23. Qb4 {[%clk 0:37:37]}  Bc7 {[%clk 0:32:51]} 24. Nb5 {[%clk 0:28:03]}  Qxb4 {[%clk 0:30:34]} 25. axb4 {[%clk 0:27:29]}  Bb6 {[%clk 0:30:18]} 26. Nd6 {[%clk 0:25:59]}  Bd7 {[%clk 0:30:27]} 27. Nxb7 {[%clk 0:26:22]}  Rb8 {[%clk 0:27:24]} 28. Nd6 {[%clk 0:25:02]}  Kf8 {[%clk 0:27:05]} 29. Bc2 {[%clk 0:24:33]}  f5 {[%clk 0:20:14]} 30. Nc4 {[%clk 0:14:47]}  Bc7 {[%clk 0:19:38]} 31. Na3 {[%clk 0:10:42]}  Bd6 {[%clk 0:18:56]} 32. Rd1 {[%clk 0:09:03]}  Ke7 {[%clk 0:19:18]} 33. b5 {[%clk 0:09:28]}  Bxa3 {[%clk 0:16:21]} 34. bxa3 {[%clk 0:09:53]}  Rxb5 {[%clk 0:16:46]} 35. Rxd7+ {[%clk 0:09:25]}  Kxd7 {[%clk 0:17:06]} 36. Ba4 {[%clk 0:09:52]}  a6 {[%clk 0:16:53]} 37. Nd4 {[%clk 0:10:16]}  Ne5 {[%clk 0:15:02]} 38. Nxb5 {[%clk 0:06:07]}  axb5 {[%clk 0:15:26]} 39. Bxb5+ {[%clk 0:06:35]}  Kd6 {[%clk 0:15:49]} 40. Be2 {[%clk 0:06:51]}  Kc5 {[%clk 0:05:42]} 41. Kf1 {[%clk 0:02:31]}  Nd7 {[%clk 0:05:06]} 42. Ke1 {[%clk 0:02:29]}  Nf6 {[%clk 0:05:26]} 43. Bd3 {[%clk 0:01:12]}  Kb6 {[%clk 0:03:34]} 44. f4 {[%clk 0:26:31]}  Kc5 {[%clk 0:28:33]} 45. h4 {[%clk 0:19:53]}  Nd5 {[%clk 0:22:31]} 46. Kd2 {[%clk 0:19:15]}  Nb6 {[%clk 0:22:37]} 47. Ke2 {[%clk 0:19:07]}  Kd5 {[%clk 0:18:25]} 48. Kf3 {[%clk 0:18:39]}  Kc5 {[%clk 0:17:14]} 49. Bb1 {[%clk 0:13:46]}  Na4 {[%clk 0:16:26]} 50. Bc2 {[%clk 0:13:14]}  Nc3 {[%clk 0:16:30]} 51. Bb3 {[%clk 0:13:35]}  Kd6 {[%clk 0:16:31]} 52. a4 {[%clk 0:10:13]}  Ne4 {[%clk 0:16:38]} 53. Bc2 {[%clk 0:09:51]}  Nc5 {[%clk 0:16:56]} 54. g4 {[%clk 0:09:52]}  g6 {[%clk 0:14:25]} 55. a5 {[%clk 0:06:54]}  Kc6 {[%clk 0:13:58]} 56. e4 {[%clk 0:06:29]}  Kb5 {[%clk 0:11:50]} 57. exf5 {[%clk 0:06:33]}  gxf5 {[%clk 0:12:09]} 58. g5 {[%clk 0:05:13]} 1-0


[Site "http://www.chessbomb.com"]

[Event "World Junior Chess Championship U20 2022"]
[White "Abdurakhmonov, Mukhammadali"]
[Black "Gorshtein, Ido"]
[WhiteFideId "14207346"]
[BlackFideId "2815532"]
[WhiteElo "2345"]
[BlackElo "2471"]
[Result "1/2-1/2"]
[Round "05"]
[TimeControl "5400+30"]
[Date "2022.10.15"]
[WhiteClock "0:04:59"]
[BlackClock "0:11:36"]

1. d4 {[%clk 1:26:36]}  f5 {[%clk 1:30:43]} 2. Bg5 {[%clk 1:26:54]}  g6 {[%clk 1:30:52]} 3. Nc3 {[%clk 1:26:43]}  Bg7 {[%clk 1:30:50]} 4. h4 {[%clk 1:26:47]}  h6 {[%clk 1:31:06]} 5. Bf4 {[%clk 1:27:11]}  Nf6 {[%clk 1:30:30]} 6. e3 {[%clk 1:27:31]}  d6 {[%clk 1:30:06]} 7. Bc4 {[%clk 1:27:23]}  e6 {[%clk 1:27:02]} 8. Qf3 {[%clk 1:24:49]}  Qe7 {[%clk 1:23:46]} 9. O-O-O {[%clk 1:23:21]}  Nc6 {[%clk 1:20:22]} 10. Qg3 {[%clk 1:13:15]}  Qf7 {[%clk 1:12:05]} 11. Nge2 {[%clk 1:11:29]}  a6 {[%clk 1:10:56]} 12. d5 {[%clk 0:52:34]}  exd5 {[%clk 1:05:44]} 13. Nxd5 {[%clk 0:52:35]}  Nxd5 {[%clk 1:04:58]} 14. Bxd5 {[%clk 0:52:43]}  Qf6 {[%clk 1:04:39]} 15. c3 {[%clk 0:51:14]}  Ne7 {[%clk 1:03:35]} 16. e4 {[%clk 0:40:52]}  fxe4 {[%clk 1:01:35]} 17. Bxe4 {[%clk 0:41:06]}  Be6 {[%clk 0:59:51]} 18. Qe3 {[%clk 0:33:53]}  Bxa2 {[%clk 0:55:27]} 19. Bxb7 {[%clk 0:23:23]}  Rb8 {[%clk 0:55:13]} 20. Bc6+ {[%clk 0:23:32]}  Kf7 {[%clk 0:55:18]} 21. Ba4 {[%clk 0:21:48]}  Nd5 {[%clk 0:45:29]} 22. Qf3 {[%clk 0:22:02]}  Rb4 {[%clk 0:43:43]} 23. Rxd5 {[%clk 0:20:47]}  Rxa4 {[%clk 0:42:55]} 24. Rd4 {[%clk 0:21:10]}  Ra5 {[%clk 0:36:15]} 25. Qc6 {[%clk 0:20:48]}  Qd8 {[%clk 0:30:00]} 26. Bxd6 {[%clk 0:13:32]}  Bxd4 {[%clk 0:12:22]} 27. Bxc7 {[%clk 0:13:53]}  Qd5 {[%clk 0:12:35]} 28. Nxd4 {[%clk 0:13:27]}  Qxc6 {[%clk 0:12:20]} 29. Nxc6 {[%clk 0:13:55]}  Rc5 {[%clk 0:11:49]} 30. Ne5+ {[%clk 0:11:06]}  Kg8 {[%clk 0:10:41]} 31. Bd6 {[%clk 0:10:50]}  Rd5 {[%clk 0:11:01]} 32. Rd1 {[%clk 0:11:08]}  Kh7 {[%clk 0:09:55]} 33. c4 {[%clk 0:09:50]}  Rxd1+ {[%clk 0:10:18]} 34. Kxd1 {[%clk 0:10:15]}  Rc8 {[%clk 0:09:39]} 35. c5 {[%clk 0:10:33]}  Kg7 {[%clk 0:09:11]} 36. Kd2 {[%clk 0:07:24]}  g5 {[%clk 0:07:01]} 37. hxg5 {[%clk 0:06:25]}  hxg5 {[%clk 0:07:29]} 38. Nd7 {[%clk 0:01:40]}  Kf7 {[%clk 0:05:43]} 39. Nb6 {[%clk 0:02:00]}  Rc6 {[%clk 0:04:55]} 40. g4 {[%clk 0:01:02]}  Ke6 {[%clk 0:04:47]} 41. Na4 {[%clk 0:00:56]}  Bd5 {[%clk 0:03:03]} 42. Ke3 {[%clk 0:01:05]}  Rc8 {[%clk 0:03:16]} 43. Nc3 {[%clk 0:00:35]}  Rh8 {[%clk 0:03:09]} 44. Ne2 {[%clk 0:23:58]}  Rh1 {[%clk 0:27:10]} 45. f4 {[%clk 0:21:34]}  Bc4 {[%clk 0:18:44]} 46. f5+ {[%clk 0:18:04]}  Kd7 {[%clk 0:17:38]} 47. Ng3 {[%clk 0:18:23]}  Rb1 {[%clk 0:11:18]} 48. Kd4 {[%clk 0:14:10]}  Ba2 {[%clk 0:11:10]} 49. Kc3 {[%clk 0:13:57]}  Rc1+ {[%clk 0:11:20]} 50. Kd3 {[%clk 0:12:20]}  Rd1+ {[%clk 0:11:10]} 51. Kc3 {[%clk 0:10:00]}  Rc1+ {[%clk 0:11:36]} 52. Kd3 {[%clk 0:04:59]} 1/2-1/2


[Site "http://www.chessbomb.com"]

[Event "World Junior Chess Championship U20 2022"]
[White "Nesterov, Arseniy"]
[Black "Petriashvili, Nikoloz"]
[WhiteFideId "24198455"]
[BlackFideId "13611216"]
[WhiteElo "2567"]
[BlackElo "2428"]
[Result "1-0"]
[Round "05"]
[TimeControl "5400+30"]
[Date "2022.10.15"]
[WhiteClock "0:33:10"]
[BlackClock "0:38:34"]

1. d4 {[%clk 1:30:57]}  d6 {[%clk 1:27:20]} 2. e4 {[%clk 1:29:54]}  Nf6 {[%clk 1:27:35]} 3. Nc3 {[%clk 1:30:08]}  e5 {[%clk 1:27:53]} 4. Nf3 {[%clk 1:30:03]}  Nbd7 {[%clk 1:28:17]} 5. Bc4 {[%clk 1:30:20]}  Be7 {[%clk 1:28:45]} 6. O-O {[%clk 1:30:36]}  O-O {[%clk 1:29:12]} 7. Re1 {[%clk 1:29:36]}  a6 {[%clk 1:26:39]} 8. a4 {[%clk 1:29:50]}  b6 {[%clk 1:27:07]} 9. Bg5 {[%clk 1:10:54]}  Bb7 {[%clk 1:27:03]} 10. Qd2 {[%clk 1:07:14]}  c6 {[%clk 1:26:07]} 11. d5 {[%clk 0:50:51]}  cxd5 {[%clk 1:24:03]} 12. Bxf6 {[%clk 0:50:50]}  dxc4 {[%clk 1:22:04]} 13. Bxe7 {[%clk 0:51:14]}  Qxe7 {[%clk 1:22:23]} 14. Rad1 {[%clk 0:51:19]}  Rfd8 {[%clk 1:15:50]} 15. Qxd6 {[%clk 0:50:53]}  Qxd6 {[%clk 1:15:53]} 16. Rxd6 {[%clk 0:51:20]}  Kf8 {[%clk 1:16:12]} 17. Red1 {[%clk 0:49:25]}  Ke7 {[%clk 1:07:41]} 18. Ng5 {[%clk 0:49:11]}  Nc5 {[%clk 1:06:01]} 19. Nxf7 {[%clk 0:48:59]}  Rxd6 {[%clk 0:53:08]} 20. Nxd6 {[%clk 0:49:23]}  b5 {[%clk 0:51:50]} 21. axb5 {[%clk 0:48:26]}  axb5 {[%clk 0:52:15]} 22. Nxb7 {[%clk 0:48:12]}  Nxb7 {[%clk 0:52:41]} 23. Nxb5 {[%clk 0:46:13]}  Nc5 {[%clk 0:50:57]} 24. Nd6 {[%clk 0:40:29]}  Ra4 {[%clk 0:49:23]} 25. f3 {[%clk 0:39:38]}  g6 {[%clk 0:46:17]} 26. Nc8+ {[%clk 0:35:49]}  Ke8 {[%clk 0:38:58]} 27. Rd5 {[%clk 0:35:55]}  Nd7 {[%clk 0:39:18]} 28. Kf2 {[%clk 0:35:32]}  Rb4 {[%clk 0:37:45]} 29. Rb5 {[%clk 0:35:33]}  Ra4 {[%clk 0:37:59]} 30. Rb7 {[%clk 0:31:51]}  Nc5 {[%clk 0:37:06]} 31. Nd6+ {[%clk 0:32:09]}  Kd8 {[%clk 0:37:25]} 32. Rxh7 {[%clk 0:31:51]}  Rb4 {[%clk 0:37:51]} 33. Kg3 {[%clk 0:31:51]}  Nd7 {[%clk 0:37:11]} 34. c3 {[%clk 0:32:03]}  Rxb2 {[%clk 0:37:39]} 35. Nxc4 {[%clk 0:32:26]}  Rc2 {[%clk 0:38:07]} 36. Ne3 {[%clk 0:32:47]}  Rxc3 {[%clk 0:38:34]} 37. Rh8+ {[%clk 0:33:10]} 1-0


[Site "http://www.chessbomb.com"]

[Event "World Junior Chess Championship U20 2022"]
[White "Mendonca, Leon Luke"]
[Black "Barseghyan, Armen Ar."]
[WhiteFideId "35028561"]
[BlackFideId "13306707"]
[WhiteElo "2558"]
[BlackElo "2402"]
[Result "1-0"]
[Round "05"]
[TimeControl "5400+30"]
[Date "2022.10.15"]
[WhiteClock "0:08:24"]
[BlackClock "0:16:45"]

1. d4 {[%clk 1:28:02]}  Nf6 {[%clk 1:30:30]} 2. c4 {[%clk 1:28:20]}  e6 {[%clk 1:30:36]} 3. Nc3 {[%clk 1:28:40]}  d5 {[%clk 1:30:28]} 4. cxd5 {[%clk 1:28:53]}  Nxd5 {[%clk 1:30:25]} 5. e4 {[%clk 1:29:08]}  Nxc3 {[%clk 1:30:36]} 6. bxc3 {[%clk 1:29:33]}  c5 {[%clk 1:30:27]} 7. Rb1 {[%clk 1:29:15]}  cxd4 {[%clk 1:30:26]} 8. cxd4 {[%clk 1:29:35]}  Be7 {[%clk 1:30:40]} 9. Nf3 {[%clk 1:26:08]}  O-O {[%clk 1:30:35]} 10. Bc4 {[%clk 1:23:38]}  Nd7 {[%clk 1:28:21]} 11. O-O {[%clk 1:22:40]}  Nf6 {[%clk 1:25:21]} 12. Qe2 {[%clk 1:16:07]}  b6 {[%clk 1:14:30]} 13. e5 {[%clk 1:06:44]}  Nd5 {[%clk 1:14:30]} 14. Qe4 {[%clk 1:06:22]}  Bd7 {[%clk 1:14:30]} 15. Qg4 {[%clk 0:58:09]}  Kh8 {[%clk 1:05:20]} 16. Bd3 {[%clk 0:50:14]}  Rc8 {[%clk 0:57:49]} 17. Bd2 {[%clk 0:30:49]}  f5 {[%clk 0:52:35]} 18. exf6 {[%clk 0:30:52]}  Nxf6 {[%clk 0:52:59]} 19. Qh4 {[%clk 0:28:10]}  Kg8 {[%clk 0:48:41]} 20. Rfe1 {[%clk 0:25:48]}  g6 {[%clk 0:42:00]} 21. Bh6 {[%clk 0:21:27]}  Nh5 {[%clk 0:38:02]} 22. Qe4 {[%clk 0:19:22]}  Ng7 {[%clk 0:35:38]} 23. Ne5 {[%clk 0:14:35]}  Bf6 {[%clk 0:35:31]} 24. Nxg6 {[%clk 0:09:12]}  hxg6 {[%clk 0:34:32]} 25. Qxg6 {[%clk 0:09:40]}  Rf7 {[%clk 0:33:07]} 26. d5 {[%clk 0:08:55]}  Bb5 {[%clk 0:16:18]} 27. Qh7+ {[%clk 0:08:16]}  Kf8 {[%clk 0:16:45]} 28. Rxe6 {[%clk 0:08:24]} 1-0


[Site "http://www.chessbomb.com"]

[Event "World Junior Chess Championship U20 2022"]
[White "Iniyan, P"]
[Black "Bournel, Antoine"]
[WhiteFideId "25002767"]
[BlackFideId "26093553"]
[WhiteElo "2541"]
[BlackElo "2402"]
[Result "0-1"]
[Round "05"]
[TimeControl "5400+30"]
[Date "2022.10.15"]
[WhiteClock "0:22:29"]
[BlackClock "0:30:20"]

1. d4 {[%clk 1:26:13]}  d5 {[%clk 1:30:05]} 2. c4 {[%clk 1:26:37]}  c6 {[%clk 1:30:02]} 3. Nf3 {[%clk 1:26:59]}  e6 {[%clk 1:29:40]} 4. Qc2 {[%clk 1:26:54]}  dxc4 {[%clk 1:26:42]} 5. Qxc4 {[%clk 1:27:15]}  b5 {[%clk 1:17:02]} 6. Qc2 {[%clk 1:27:05]}  Bb7 {[%clk 1:15:46]} 7. e4 {[%clk 1:27:26]}  Nd7 {[%clk 1:14:16]} 8. Nbd2 {[%clk 1:27:32]}  Ngf6 {[%clk 1:04:50]} 9. Bd3 {[%clk 1:25:57]}  Qb6 {[%clk 1:01:37]} 10. a4 {[%clk 1:19:43]}  a6 {[%clk 0:45:44]} 11. Nb3 {[%clk 0:47:53]}  c5 {[%clk 0:39:50]} 12. axb5 {[%clk 0:45:44]}  axb5 {[%clk 0:37:19]} 13. Rxa8+ {[%clk 0:46:09]}  Bxa8 {[%clk 0:37:42]} 14. dxc5 {[%clk 0:46:36]}  Nxc5 {[%clk 0:36:23]} 15. Nxc5 {[%clk 0:46:40]}  Bxc5 {[%clk 0:35:37]} 16. O-O {[%clk 0:47:04]}  O-O {[%clk 0:27:09]} 17. e5 {[%clk 0:36:32]}  Ng4 {[%clk 0:26:33]} 18. Bf4 {[%clk 0:36:08]}  Rc8 {[%clk 0:23:25]} 19. Qe2 {[%clk 0:36:25]}  Bd4 {[%clk 0:12:37]} 20. Bxh7+ {[%clk 0:34:33]}  Kxh7 {[%clk 0:13:05]} 21. Ng5+ {[%clk 0:34:55]}  Kg8 {[%clk 0:13:17]} 22. Qxg4 {[%clk 0:35:12]}  Qc6 {[%clk 0:11:23]} 23. Nf3 {[%clk 0:33:59]}  Qc4 {[%clk 0:07:34]} 24. b3 {[%clk 0:33:06]}  Qc3 {[%clk 0:07:15]} 25. Ng5 {[%clk 0:32:54]}  Qc2 {[%clk 0:04:46]} 26. h3 {[%clk 0:30:20]}  Bd5 {[%clk 0:03:31]} 27. Bg3 {[%clk 0:30:45]}  Bb2 {[%clk 0:03:01]} 28. Rd1 {[%clk 0:30:09]}  Qxd1+ {[%clk 0:02:56]} 29. Qxd1 {[%clk 0:30:25]}  Rc1 {[%clk 0:03:24]} 30. Qxc1 {[%clk 0:27:56]}  Bxc1 {[%clk 0:03:52]} 31. Nf3 {[%clk 0:22:07]}  Bxb3 {[%clk 0:04:20]} 32. Nd4 {[%clk 0:22:28]}  Bc4 {[%clk 0:04:24]} 33. Nc2 {[%clk 0:22:41]}  Bd2 {[%clk 0:03:28]} 34. f4 {[%clk 0:22:51]}  Bd3 {[%clk 0:03:29]} 35. Be1 {[%clk 0:19:57]}  Bxe1 {[%clk 0:03:25]} 36. Nxe1 {[%clk 0:20:22]}  Be4 {[%clk 0:03:45]} 37. Kf2 {[%clk 0:20:50]}  b4 {[%clk 0:04:09]} 38. Ke3 {[%clk 0:21:16]}  b3 {[%clk 0:04:29]} 39. Nd3 {[%clk 0:21:44]}  Bxg2 {[%clk 0:04:48]} 40. h4 {[%clk 0:22:11]}  Bf1 {[%clk 0:03:21]} 41. Nb2 {[%clk 0:22:29]}  Kh7 {[%clk 0:30:20]} 42. Kd4 {[%clk 0:22:29]} 0-1


[Site "http://www.chessbomb.com"]

[Event "World Junior Chess Championship U20 2022"]
[White "Seo, Jung Min"]
[Black "Peyrer, Konstantin"]
[WhiteFideId "1734687"]
[BlackFideId "1640879"]
[WhiteElo "2520"]
[BlackElo "2402"]
[Result "1/2-1/2"]
[Round "05"]
[TimeControl "5400+30"]
[Date "2022.10.15"]
[WhiteClock "0:07:47"]
[BlackClock "0:40:40"]

1. d4 {[%clk 1:30:19]}  d5 {[%clk 1:30:48]} 2. c4 {[%clk 1:30:47]}  c6 {[%clk 1:31:13]} 3. Nf3 {[%clk 1:31:12]}  Nf6 {[%clk 1:31:36]} 4. e3 {[%clk 1:31:38]}  a6 {[%clk 1:31:55]} 5. Nc3 {[%clk 1:30:01]}  e6 {[%clk 1:32:03]} 6. b3 {[%clk 1:27:37]}  Bb4 {[%clk 1:32:26]} 7. Bd2 {[%clk 1:28:03]}  O-O {[%clk 1:32:48]} 8. Bd3 {[%clk 1:25:59]}  Nbd7 {[%clk 1:33:10]} 9. O-O {[%clk 1:26:15]}  Bd6 {[%clk 1:33:33]} 10. h3 {[%clk 1:18:34]}  e5 {[%clk 1:33:43]} 11. cxd5 {[%clk 1:18:55]}  cxd5 {[%clk 1:34:08]} 12. dxe5 {[%clk 1:19:20]}  Nxe5 {[%clk 1:34:31]} 13. Nxe5 {[%clk 1:19:10]}  Bxe5 {[%clk 1:34:56]} 14. Rc1 {[%clk 1:19:25]}  Bb8 {[%clk 1:35:22]} 15. Ne2 {[%clk 1:18:26]}  Ne4 {[%clk 1:35:46]} 16. Bxe4 {[%clk 1:17:07]}  dxe4 {[%clk 1:36:11]} 17. Bb4 {[%clk 1:17:04]}  Qxd1 {[%clk 1:35:36]} 18. Rfxd1 {[%clk 1:17:31]}  Re8 {[%clk 1:35:58]} 19. Nc3 {[%clk 1:14:42]}  Be5 {[%clk 1:23:15]} 20. Nxe4 {[%clk 1:12:02]}  Bf5 {[%clk 1:21:34]} 21. Nd2 {[%clk 0:57:10]}  a5 {[%clk 1:12:20]} 22. Bc3 {[%clk 0:56:47]}  Bxc3 {[%clk 1:12:34]} 23. Rxc3 {[%clk 0:57:14]}  Red8 {[%clk 1:12:58]} 24. Rcc1 {[%clk 0:57:08]}  a4 {[%clk 1:12:24]} 25. bxa4 {[%clk 0:37:34]}  Rxa4 {[%clk 1:12:38]} 26. Ne4 {[%clk 0:32:29]}  Rxd1+ {[%clk 0:50:53]} 27. Rxd1 {[%clk 0:32:54]}  h6 {[%clk 0:51:17]} 28. Nd6 {[%clk 0:26:23]}  Be6 {[%clk 0:46:43]} 29. Nxb7 {[%clk 0:26:43]}  Rxa2 {[%clk 0:47:03]} 30. Nc5 {[%clk 0:26:08]}  Kf8 {[%clk 0:46:37]} 31. g4 {[%clk 0:14:35]}  Ke7 {[%clk 0:44:06]} 32. Kg2 {[%clk 0:13:43]}  Ra5 {[%clk 0:43:03]} 33. Rc1 {[%clk 0:13:32]}  Bd5+ {[%clk 0:42:08]} 34. Kg3 {[%clk 0:13:19]}  Ra3 {[%clk 0:41:42]} 35. Rd1 {[%clk 0:13:27]}  Be6 {[%clk 0:41:49]} 36. h4 {[%clk 0:13:25]}  Ra5 {[%clk 0:41:35]} 37. Rc1 {[%clk 0:09:24]}  g6 {[%clk 0:41:07]} 38. f3 {[%clk 0:06:20]}  Ra3 {[%clk 0:35:33]} 39. e4 {[%clk 0:05:44]}  Kd6 {[%clk 0:33:30]} 40. Nb7+ {[%clk 0:05:45]}  Kd7 {[%clk 0:33:53]} 41. Rd1+ {[%clk 0:04:19]}  Ke7 {[%clk 0:34:14]} 42. Nc5 {[%clk 0:02:24]}  Rc3 {[%clk 0:30:51]} 43. Na4 {[%clk 0:29:50]}  Ra3 {[%clk 0:57:54]} 44. Nb2 {[%clk 0:27:51]}  Rc3 {[%clk 0:56:24]} 45. Ra1 {[%clk 0:24:59]}  f5 {[%clk 0:53:01]} 46. Nd1 {[%clk 0:23:19]}  Rb3 {[%clk 0:53:14]} 47. Ra7+ {[%clk 0:23:23]}  Kf6 {[%clk 0:53:31]} 48. Nf2 {[%clk 0:23:29]}  fxg4 {[%clk 0:50:25]} 49. Nxg4+ {[%clk 0:23:54]}  Bxg4 {[%clk 0:50:48]} 50. Kxg4 {[%clk 0:24:23]}  Rb5 {[%clk 0:50:34]} 51. Ra6+ {[%clk 0:16:58]}  Kf7 {[%clk 0:49:57]} 52. Rd6 {[%clk 0:17:00]}  Kg7 {[%clk 0:46:56]} 53. Rd5 {[%clk 0:10:32]}  Rb6 {[%clk 0:45:20]} 54. f4 {[%clk 0:07:23]}  Rb4 {[%clk 0:43:16]} 55. e5 {[%clk 0:03:41]}  Ra4 {[%clk 0:43:09]} 56. Rd7+ {[%clk 0:03:51]}  Kg8 {[%clk 0:42:15]} 57. Kf3 {[%clk 0:03:13]}  h5 {[%clk 0:38:06]} 58. Ke3 {[%clk 0:02:56]}  Kf8 {[%clk 0:38:03]} 59. Rd4 {[%clk 0:01:43]}  Ra3+ {[%clk 0:37:02]} 60. Ke4 {[%clk 0:02:09]}  Ke7 {[%clk 0:35:25]} 61. Rb4 {[%clk 0:02:29]}  Ra1 {[%clk 0:33:20]} 62. Rb7+ {[%clk 0:02:51]}  Ke6 {[%clk 0:33:42]} 63. Rg7 {[%clk 0:02:45]}  Ra4+ {[%clk 0:34:04]} 64. Ke3 {[%clk 0:02:03]}  Ra3+ {[%clk 0:34:09]} 65. Kd2 {[%clk 0:01:50]}  Kf5 {[%clk 0:31:36]} 66. Rf7+ {[%clk 0:02:16]}  Ke4 {[%clk 0:31:53]} 67. e6 {[%clk 0:01:58]}  Rd3+ {[%clk 0:30:20]} 68. Ke2 {[%clk 0:01:58]}  Rd8 {[%clk 0:30:27]} 69. Rf6 {[%clk 0:01:07]}  Re8 {[%clk 0:30:27]} 70. Kf2 {[%clk 0:01:18]}  Rc8 {[%clk 0:30:46]} 71. Kg3 {[%clk 0:00:57]}  Rc3+ {[%clk 0:31:10]} 72. Kf2 {[%clk 0:01:21]}  Rc8 {[%clk 0:31:33]} 73. Ke2 {[%clk 0:01:37]}  Re8 {[%clk 0:31:49]} 74. Kd2 {[%clk 0:01:46]}  Rc8 {[%clk 0:32:14]} 75. Kd1 {[%clk 0:01:29]}  Ke3 {[%clk 0:32:36]} 76. e7 {[%clk 0:00:52]}  Re8 {[%clk 0:33:01]} 77. Rf7 {[%clk 0:01:18]}  Ke4 {[%clk 0:33:27]} 78. Ke2 {[%clk 0:01:37]}  Kd5 {[%clk 0:33:51]} 79. Rg7 {[%clk 0:01:53]}  Ke4 {[%clk 0:34:16]} 80. Rf7 {[%clk 0:01:52]}  Kd5 {[%clk 0:34:42]} 81. f5 {[%clk 0:01:59]}  gxf5 {[%clk 0:35:06]} 82. Rxf5+ {[%clk 0:02:27]}  Ke6 {[%clk 0:35:25]} 83. Rxh5 {[%clk 0:02:55]}  Rxe7 {[%clk 0:35:49]} 84. Kf3 {[%clk 0:03:22]}  Kf6 {[%clk 0:36:13]} 85. Ra5 {[%clk 0:03:31]}  Kg7 {[%clk 0:36:35]} 86. h5 {[%clk 0:03:56]}  Kh7 {[%clk 0:36:54]} 87. Kg4 {[%clk 0:04:22]}  Rb7 {[%clk 0:37:18]} 88. Kg5 {[%clk 0:04:47]}  Rc7 {[%clk 0:37:43]} 89. h6 {[%clk 0:05:12]}  Rb7 {[%clk 0:38:10]} 90. Rf5 {[%clk 0:05:36]}  Ra7 {[%clk 0:38:35]} 91. Rf4 {[%clk 0:06:03]}  Ra5+ {[%clk 0:39:00]} 92. Kg4 {[%clk 0:06:30]}  Kxh6 {[%clk 0:39:23]} 93. Kf3 {[%clk 0:06:54]}  Kg6 {[%clk 0:39:49]} 94. Kf2 {[%clk 0:07:19]}  Rf5 {[%clk 0:40:15]} 95. Rxf5 {[%clk 0:07:47]}  Kxf5 {[%clk 0:40:40]} 1/2-1/2


[Site "http://www.chessbomb.com"]